[Event "4NCL 2022-2023"]
[Site "Daventry"]
[Date "2023.03.18"]
[Round "7.48"]
[White "Putar, Lara"]
[Black "Varney, Zoe"]
[Result "0-1"]
[ECO "D11"]
[WhiteElo "1857"]
[BlackElo "1937"]
[Annotator "TA"]
[PlyCount "72"]
[EventDate "2022.10.20"]
[EventType "team-tourn"]
[EventCountry "ENG"]
[SourceTitle "playchess.com"]
[Source "ChessBase"]
[SourceQuality "1"]
[TimeControl "40/6000+30:2400+30"]

{[%evp 9,72,0,0,0,0,0,25,33,27,0,0,-2,3,-26,-13,-22,-33,-22,-11,-42,-29,-55,-31,-33,-31,-90,10,-36,-14,-5,39,0,0,-228,-212,-211,-159,-152,-141,-129,-121,-145,-89,-271,-196,-378,-232,-649,-618,-1942,-1711,-1898,-1612,-1993,-1275,-2054,-1554,-1261,-1258,-1077,-1064,-12845,-12843,-12843,-12840]} 1. d4 {[%emt 0:00:03]} d5 {[%emt 0:00:43][%cal Bd7d5,Bd5c4][%mdl 32]} 2. c4 {[%emt 0:00:06]} c6 {[%emt 0:00:05]} 3. Nf3 {[%emt 0:00:04]} Nf6 {[%emt 0:00:05]} 4. g3 {[%emt 0:00:03]} dxc4 {[%emt 0:00:29]} 5. Bg2 {[%emt 0:00:24]} b5 {[%emt 0:00:09]} 6. a4 {[%emt 0:01:04] D11: Slav Defence: 3 Nf3 sidelines and 3...Nf6 4 e3 Bg4.} Bb7 {[%emt 0:00:14]} 7. O-O {[%emt 0:00:41]} a6 {[%emt 0:03:58]} 8. b3 {[%emt 0:21:25] White has an edge.} cxb3 {[%emt 0:02:36]} 9. Qxb3 {[%emt 0:04:31]} (9. Nbd2 $5 {[%cal Rd2b3]}) 9... e6 $1 {[%emt 0:03:55]} 10. Nbd2 {[%emt 0:10:13]} Nbd7 {[%emt 0:23:40]} 11. e4 {[%emt 0:07:45]} Be7 {[%emt 0:14:29] [#]} 12. Ba3 $146 {[%emt 0:06:35]} ({Predecessor:} 12. e5 Nd5 13. Ne4 O-O 14. Bg5 c5 15. dxc5 Bxg5 16. Nexg5 Nxe5 17. Nxe5 Qxg5 18. c6 {½-½ Kravtsov,S (2404)-Deviatkin,A (2567) RUS-ch Higher League 61st 2008 (1)}) 12... O-O {[%emt 0:32:27]} 13. Bxe7 {[%emt 0:06:55]} Qxe7 {[%emt 0:00:04]} 14. e5 {[%emt 0:00:35]} Nd5 {[%emt 0:06:24]} 15. Ne4 {[%emt 0:05:15]} b4 {[%emt 0:02:01]} (15... c5 $5 {[%cal Rc5c4]} 16. axb5 cxd4 $15) 16. Rfc1 {[%emt 0:02:45]} Rab8 {[%emt 0:04:01][%cal Oc6c5]} 17. a5 {[%emt 0:09:40] [#]} (17. Qb2 $15) 17... Rfd8 {[%emt 0:05:56]} ({Black should play} 17... c5 $1 $17 {[%cal Rc5d4] Strongly threatening ...cxd4.} 18. dxc5 Rfc8) 18. Rc2 {[%emt 0:03:23] [#]} (18. Qb2 $11) 18... c5 $1 {[%emt 0:03:51]} 19. dxc5 {[%emt 0:02:10] c6 is the strong threat.} Rdc8 {[%emt 0:00:12][%cal Rd7c5]} 20. Rac1 {[%emt 0:08:09] Black must now prevent c6.} Nc3 $1 {[%emt 0:00:07]} 21. Nd6 {[%emt 0:12:39]} (21. Nxc3 $11 bxc3 22. Qxc3) 21... Rxc5 $19 {[%emt 0:01:10]} 22. Nxb7 {[%emt 0:00:09]} Rxb7 {[%emt 0:02:22]} 23. Rxc3 {[%emt 0:00:14]} Rxc3 {[%emt 0:00:51]} 24. Rxc3 {[%emt 0:00:06]} Nc5 {[%emt 0:00:04]} 25. Rxc5 {[%emt 0:02:08]} Qxc5 {[%emt 0:00:02]} 26. Ne1 $2 {[%emt 0:01:41] Now White is beyond hope.} (26. Bf1 $17) 26... Rd7 {[%emt 0:00:57]} 27. Bf3 $2 {[%emt 0:04:06]} (27. Bf1 Qxa5 28. Nd3) 27... Qxa5 {[%emt 0:01:26]} 28. Nd3 $2 {[%emt 0:00:43]} (28. Be2) 28... Qa3 {[%emt 0:00:39] Black is clearly winning.} 29. Qxa3 {[%emt 0:00:42]} bxa3 {[%emt 0:00:02]} 30. Nc1 {[%emt 0:00:08]} Rd2 {[%emt 0:02:31] ...Rc2 would be deadly.} 31. Kf1 {[%emt 0:01:05]} a2 {[%emt 0:00:00]} 32. Nxa2 {[%emt 0:00:29]} Rxa2 {[%emt 0:00:00]} 33. Ke1 {[%emt 0:00:27]} a5 {[%emt 0:00:00][%cal Ba6a5,Ba5a4,Ba4a3][%mdl 32] Threatens to win with ...a4.} 34. Be2 {[%emt 0:00:32]} a4 {[%emt 0:00:00]} 35. f4 {[%emt 0:00:24]} a3 {[%emt 0:00:00][%cal Oa2e2] ( -> ...Rxe2+!)} 36. Bc4 {[%emt 0:00:39]} Rb2 {[%emt 0:00:00] Weighted Error Value: White=1.20/Black=0.53} 0-1

[Event "4NCL 2022-2023"]
[Site "Daventry"]
[Date "2023.03.19"]
[Round "8.1"]
[White "Alonso Rosell, Alvar"]
[Black "Speelman, Jon S"]
[Result "1/2-1/2"]
[ECO "E06"]
[WhiteElo "2567"]
[BlackElo "2500"]
[Annotator "TA"]
[PlyCount "113"]
[EventDate "2022.10.20"]
[EventType "team-tourn"]
[EventCountry "ENG"]
[SourceTitle "playchess.com"]
[Source "ChessBase"]
[SourceQuality "1"]
[TimeControl "40/6000+30:2400+30"]

{[%evp 21,113,10,16,8,12,6,21,3,10,0,21,0,41,41,41,42,42,37,54,30,45,38,50,29,51,54,84,84,84,84,84,75,80,82,75,75,72,57,57,57,62,21,21,21,21,21,36,29,47,29,29,0,47,29,29,29,47,48,49,29,29,29,29,0,48,29,29,16,16,16,16,16,22,1,7,7,24,24,24,26,33,0,0,0,5,5,5,6,24,33,33,0,0,0]} 1. d4 {[%emt 0:02:09]} Nf6 {[%emt 0:01:16]} 2. c4 {[%emt 0:00:08]} e6 {[%emt 0:00:05]} 3. Nf3 {[%emt 0:00:08]} d5 {[%emt 0:00:08]} 4. g3 {[%emt 0:02:22]} Be7 {[%emt 0:00:46]} 5. Bg2 {[%emt 0:00:30]} O-O {[%emt 0:00:07]} 6. Nc3 {[%emt 0:01:48]} dxc4 {[%emt 0:04:51]} 7. Ne5 {[%emt 0:01:25]} Nc6 {[%emt 0:05:14]} 8. Bxc6 {[%emt 0:00:36]} bxc6 {[%emt 0:00:04]} 9. Nxc6 {[%emt 0:00:06]} Qe8 {[%emt 0:00:14]} 10. Nxe7+ {[%emt 0:00:06]} Qxe7 {[%emt 0:00:04]} 11. Qa4 {[%emt 0:00:07]} c5 {[%emt 0:06:17] Black is weak on the dark squares} 12. dxc5 {[%emt 0:05:36] E06: Closed Catalan: Early deviations.} Qxc5 {[%emt 0:01:37]} 13. Be3 {[%emt 0:00:09][%cal Bc1e3,Be3d4,Bd4c3][%mdl 32]} Qc7 {[%emt 0:01:01]} 14. f3 {[%emt 0:01:08]} Nd5 {[%emt 0:04:31]} 15. Bd4 {[%emt 0:11:59]} Bb7 {[%emt 0:05:34]} 16. O-O-O {[%emt 0:14:37] [#]} Rfc8 $146 {[%emt 0:09:13]} ({Predecessor:} 16... Rfd8 17. Kb1 Nxc3+ 18. Bxc3 Qc5 19. Rxd8+ Rxd8 20. Rd1 Rxd1+ 21. Qxd1 Qd5 22. Qxd5 Bxd5 {½-½ Navara,D (2717)-Karthikeyan,M (2606) Gibraltar Masters 18th 2020 (8)}) 17. e4 {[%emt 0:10:07]} (17. Bxa7 $2 Bc6 18. Qc2 Qxa7 $19) 17... Nxc3 {[%emt 0:05:08]} 18. Bxc3 {[%emt 0:00:08]} Qc5 {[%emt 0:01:47]} 19. Rd4 {[%emt 0:14:28] Active counter play!} a5 {[%emt 0:09:50]} 20. f4 {[%emt 0:08:41]} h6 {[%emt 0:14:53]} 21. Rhd1 {[%emt 0:06:38]} Qh5 {[%emt 0:02:23]} 22. R1d2 {[%emt 0:05:41]} ({But not} 22. Rxc4 Qxh2 23. Rxc8+ Rxc8 $15) 22... Bc6 {[%emt 0:02:17]} 23. Qd1 {[%emt 0:11:29]} ({Of course not} 23. Qxc4 Bxe4 24. Qe2 Bf3 $11) 23... Qxd1+ {[%emt 0:00:29]} 24. Kxd1 {[%emt 0:00:15]} a4 {[%emt 0:02:47]} 25. a3 {[%emt 0:01:31]} Bb7 {[%emt 0:00:11]} 26. Ke2 {[%emt 0:00:46]} e5 {[%emt 0:10:50]} 27. fxe5 {[%emt 0:00:32][%cal Oe5e6]} Re8 {[%emt 0:00:03]} 28. Kf2 {[%emt 0:01:41]} (28. Rxc4 $2 {too greedy.} Ba6 29. Rd6 Bxc4+ $19) 28... Rac8 {[%emt 0:01:58]} 29. Rd7 {[%emt 0:04:35]} Bxe4 {[%emt 0:00:13]} 30. R2d6 {[%emt 0:00:08][%cal Oe5e6]} Bf5 {[%emt 0:01:01] Against e6} 31. Rb7 {[%emt 0:02:29]} (31. Ra7 $5 {[%cal Ra7a4]}) 31... Ra8 {[%emt 0:01:49]} 32. Ke3 {[%emt 0:01:01]} Be6 {[%emt 0:00:49]} 33. h4 {[%emt 0:01:15]} h5 {[%emt 0:03:48]} 34. Kf4 {[%emt 0:00:23]} Bg4 {[%emt 0:01:09]} 35. Rb4 {[%emt 0:02:28]} Rec8 {[%emt 0:03:01]} 36. Rb7 {[%emt 0:00:11][%cal Oe5e6]} Re8 {[%emt 0:00:22]} 37. Rbb6 {[%emt 0:00:26]} Rec8 {[%emt 0:04:31]} 38. Ra6 {[%emt 0:00:23]} Rxa6 {[%emt 0:00:56]} 39. Rxa6 $11 {[%emt 0:00:02][%mdl 4096] Endgame KRB-KRB} Bd1 $1 {[%emt 0:00:25]} 40. Rd6 {[%emt 0:00:52]} Bg4 {[%emt 0:00:23]} 41. Kg5 {[%emt 0:41:03]} Rc7 {[%emt 0:44:04]} 42. Kf4 {[%emt 0:00:00]} Kh7 {[%emt 0:00:00]} (42... Rc8 $11 {should be considered.}) 43. Ke3 {[%emt 0:00:00]} Ra7 {[%emt 0:00:00]} 44. Kd4 {[%emt 0:00:00]} Be6 {[%emt 0:00:00]} 45. Kc5 {[%emt 0:00:00]} Kg6 {[%emt 0:00:00]} 46. Kb6 {[%emt 0:00:00]} Ra8 {[%emt 0:00:00]} 47. Kb5 {[%emt 0:00:00]} Kf5 {[%emt 0:00:00]} 48. Rd4 {[%emt 0:00:00]} Kg6 {[%emt 0:00:00]} 49. Rf4 {[%emt 0:00:00]} Ra7 {[%emt 0:00:00]} 50. Bd4 {[%emt 0:00:00]} Ra8 {[%emt 0:00:00]} 51. Bc5 {[%emt 0:00:00]} Rb8+ {[%emt 0:00:00]} 52. Bb6 $1 {[%emt 0:00:00]} Bd7+ {[%emt 0:00:00]} 53. Ka6 {[%emt 0:00:00]} Bc8+ {[%emt 0:00:00]} 54. Ka5 {[%emt 0:00:00]} Ra8+ {[%emt 0:00:00]} 55. Kb5 {[%emt 0:00:00]} Be6 {[%emt 0:00:00]} 56. Kc6 {[%emt 0:00:00]} Rb8 {[%emt 0:00:00]} 57. Kb5 {[%emt 0:00:00] Weighted Error Value: White=0.10 (very precise) /Black=0.07 (flawless)} 1/2-1/2

[Event "4NCL 2022-2023"]
[Site "Daventry"]
[Date "2023.03.19"]
[Round "8.2"]
[White "McDonald, Neil"]
[Black "Pert, Nicholas"]
[Result "1-0"]
[ECO "B32"]
[WhiteElo "2408"]
[BlackElo "2544"]
[Annotator "TA"]
[PlyCount "71"]
[EventDate "2022.10.20"]
[EventType "team-tourn"]
[EventCountry "ENG"]
[SourceTitle "playchess.com"]
[Source "ChessBase"]
[SourceQuality "1"]
[TimeControl "40/6000+30:2400+30"]

{[%evp 14,71,25,34,37,13,16,12,22,15,21,27,39,49,67,54,53,65,73,90,125,108,98,95,147,148,183,123,238,254,460,138,163,153,295,72,87,14,143,91,109,109,107,106,91,70,760,466,457,423,918,913,897,854,1022,999,984,953,29986,29987]} 1. e4 {[%emt 0:00:03]} c5 {[%emt 0:06:05]} 2. Nf3 {[%emt 0:00:11]} Nc6 {[%emt 0:00:05]} 3. d4 {[%emt 0:00:12]} cxd4 {[%emt 0:00:06]} 4. Nxd4 {[%emt 0:00:03]} e5 {[%emt 0:00:06]} 5. Nb5 {[%emt 0:00:10]} d6 {[%emt 0:00:07]} 6. N1c3 {[%emt 0:00:27]} a6 {[%emt 0:00:19]} 7. Na3 {[%emt 0:00:05]} Be6 {[%emt 0:00:38] is the new trend.} 8. Nc4 {[%emt 0:00:33]} Rb8 {[%emt 0:00:36] B32: Sicilian: Löwenthal and Kalashnikov Variations.} 9. Ne3 {[%emt 0:01:18]} Nf6 {[%emt 0:00:48]} 10. g3 {[%emt 0:00:20]} h5 {[%emt 0:02:01] The position is equal.} 11. Bg2 {[%emt 0:00:29]} h4 {[%emt 0:05:57]} 12. O-O {[%emt 0:00:28]} Nd4 {[%emt 0:00:35]} 13. Ncd5 {[%emt 0:02:49]} Nxd5 {[%emt 0:02:21]} 14. exd5 {[%emt 0:01:42]} Bd7 {[%emt 0:01:30]} 15. g4 $1 {[%emt 0:08:39] Prevents Nf5.} h3 {[%emt 0:16:14] [#]} 16. Be4 $146 {[%emt 0:02:33]} ({Predecessor:} 16. Bh1 g6 17. c3 Nf5 18. gxf5 gxf5 19. Bf3 Qh4 20. Kh1 Bh6 21. b3 Bf4 22. Nc4 {1-0 Leko,P (2670)-Jumabayev,R (2630) FIDE Chess.com Grand Swiss 2019 (10)}) 16... g6 {[%emt 0:04:24]} 17. c3 {[%emt 0:05:58]} Nb5 {[%emt 0:00:07]} 18. a4 {[%emt 0:03:29]} Na7 {[%emt 0:04:01]} (18... Nc7 $142) 19. f4 $16 {[%emt 0:01:51]} exf4 {[%emt 0:21:57]} 20. Qd4 {[%emt 0:03:48]} (20. Rxf4 Bg7 $16) 20... Rh7 {[%emt 0:19:55] [#]} (20... fxe3 $16 {was necessary.} 21. Qxh8 e2) 21. Nc4 $1 $18 {[%emt 0:05:35]} (21. Rxf4 $6 Nc8 $16) (21. Qxa7 fxe3 22. Qxe3 Be7 $16) 21... b5 $2 {[%emt 0:03:23]} (21... Nc8 22. Bxf4 (22. Rxf4 b5 $14) 22... Bxg4 23. Bxg6 (23. Bf3 Bxf3 24. Rxf3 Be7 $14) 23... fxg6) 22. axb5 $2 {[%emt 0:09:41]} (22. Qxa7 bxc4 23. Qxa6 f5 $15) (22. Bxg6 fxg6 23. Bxf4 (23. Qxf4 Qe7 $18) 23... bxc4 $18) (22. Bxf4 $18 {and White stays clearly on top.} bxc4 23. Rae1) 22... Nxb5 $16 {[%emt 0:00:53]} 23. Qd3 {[%emt 0:02:08]} f5 {[%emt 0:10:55]} (23... Bxg4 $16 {was worth a try.} 24. Bxf4 (24. Bxg6 Rg7 $17) 24... f5) 24. Bf3 $2 {[%emt 0:01:36]} (24. gxf5 Qg5+ 25. Kh1 Bxf5 $14) (24. Bxf4 $1 $18 Qf6 25. Qe3) 24... g5 {[%emt 0:02:27]} 25. Rxa6 {[%emt 0:05:19]} ({Better is} 25. gxf5 $16 {Strongly threatening f6.} Qf6 26. Bh5+ {[%mdl 64] Discovered Attack, Decoy} (26. Rxa6 Bxf5 27. Be4 Rf7 $16) (26. Bg4 Nc7 $11) 26... Rxh5 27. Qe2+ Kd8 28. Qxh5) 25... Qf6 {[%emt 0:00:45]} (25... Qc8 26. Rc6 Bxc6 27. dxc6 $14) (25... Kf7 $1 $11) 26. Nb6 {[%emt 0:03:24] Chess con chili. White is more active.} ({White should play} 26. Rb6 Qd8 27. Rxb8 Qxb8 28. gxf5) 26... Nc7 {[%emt 0:01:13] ...Bb5 is the strong threat.} 27. Nxd7 {[%emt 0:00:54]} Rxd7 {[%emt 0:00:20]} 28. Ra7 {[%emt 0:01:45]} (28. Qxf5 $2 Qxf5 29. gxf5 Nxa6 $19) 28... Re7 {[%emt 0:00:25]} 29. gxf5 {[%emt 0:02:27]} ({Resist} 29. Qxf5 Qxf5 30. gxf5 Nxd5 31. Rxe7+ Nxe7 $11) 29... Nxd5 $2 {[%emt 0:00:58][%mdl 8192] This costs Black the game.} 30. Ra6 {[%emt 0:10:00]} (30. Qa6 Nb6 $16) 30... Nb6 {[%emt 0:00:03] [#]} 31. Qb5+ $1 {[%emt 0:00:39]} Nd7 {[%emt 0:00:18]} (31... Kf7 $142 32. Rxb6 Rxb6 33. Qxb6 Qxf5 34. Qxd6 Rd7) 32. Bh5+ $18 {[%emt 0:00:54]} Rf7 {[%emt 0:02:21]} 33. Qd5 {[%emt 0:07:55][%mdl 64] aiming for Re1+. Pin} ({Not} 33. Bxf7+ Qxf7 34. Re1+ Be7 $18) 33... Ne5 {[%emt 0:03:23]} 34. Re1 {[%emt 0:05:19] Rxe5+ would kill now.} ({Weaker is} 34. Bxf7+ Qxf7 35. Qe4 Qb7 36. Qxb7 Rxb7 $14) 34... Kd8 {[%emt 0:01:10]} 35. Bxf7 {[%emt 0:01:09]} Qxf5 {[%emt 0:00:55]} 36. Rxd6+ {[%emt 0:02:09] Weighted Error Value: White=0.53/Black=0.68} 1-0

[Event "4NCL 2022-2023"]
[Site "Daventry"]
[Date "2023.03.19"]
[Round "8.3"]
[White "Pert, Richard G"]
[Black "Greet, Andrew N"]
[Result "1/2-1/2"]
[ECO "C07"]
[WhiteElo "2411"]
[BlackElo "2408"]
[Annotator "TA"]
[PlyCount "115"]
[EventDate "2022.10.20"]
[EventType "team-tourn"]
[EventCountry "ENG"]
[SourceTitle "playchess.com"]
[Source "ChessBase"]
[SourceQuality "1"]
[TimeControl "40/6000+30:2400+30"]

{[%evp 11,115,12,18,0,0,-25,23,-45,38,-4,15,1,2,-14,-14,-18,-15,-20,-23,-15,0,0,0,0,33,36,25,22,22,22,34,37,35,38,32,31,34,26,36,35,30,37,29,31,31,31,29,29,30,30,21,32,64,64,64,64,63,63,68,68,69,69,69,69,69,68,68,68,68,46,46,46,46,46,46,45,69,45,45,45,45,45,45,45,45,45,45,45,45,45,45,45,45,45,45,45,45,45,45,45,45,0,45,0,45,0]} 1. d4 {[%emt 0:02:44]} e6 {[%emt 0:01:02]} 2. e4 {[%emt 0:00:36]} d5 {[%emt 0:00:06]} 3. Nd2 {[%emt 0:00:05]} c5 {[%emt 0:00:09]} 4. Ngf3 {[%emt 0:00:13][%cal Bg1f3,Bf3d2,Bd2b3][%mdl 32]} cxd4 {[%emt 0:00:51]} 5. exd5 {[%emt 0:00:45]} Qxd5 {[%emt 0:00:13]} 6. Bc4 {[%emt 0:00:20]} Qd6 {[%emt 0:00:12]} 7. Ne4 {[%emt 0:00:40][%mdl 1024] Dodges Nf6. White has compensation. C07: French Tarrasch: 3...c5, 4 Ngf3 and 4 exd5 Qxd5.} (7. O-O $5 {[%cal Rd2e4]}) 7... Qb4+ {[%emt 0:00:27]} 8. Nfd2 {[%emt 0:00:09]} Nd7 {[%emt 0:07:42]} (8... Nc6 $142) 9. c3 {[%emt 0:05:47] [#]} (9. O-O $11) 9... Qa5 $146 {[%emt 0:09:03]} ({Better is} 9... dxc3 $15 10. bxc3 Qa5) ({Predecessor:} 9... dxc3 10. bxc3 Qa5 11. O-O Ngf6 12. Rb1 a6 13. Re1 Be7 14. Bxe6 fxe6 15. Nc4 Qd5 16. Nxf6+ Nxf6 {0-1 Adhiban,B (2654)-Grischuk,A (2777) Wch Blitz Moscow 2019 (4)}) 10. O-O {[%emt 0:08:22]} (10. Nb3 $5 {[%cal Rb3a5]} Qe5 11. Qxd4 $11 (11. cxd4 $2 {loses.} Qxe4+ 12. Kf1 Ngf6 $19)) 10... Ngf6 {[%emt 0:02:04]} 11. cxd4 {[%emt 0:16:22]} Be7 {[%emt 0:04:33]} 12. Nb3 {[%emt 0:03:25]} Qc7 {[%emt 0:05:41]} 13. Bd3 {[%emt 0:01:28]} Nxe4 {[%emt 0:13:51]} 14. Bxe4 {[%emt 0:00:08]} Nf6 {[%emt 0:00:13]} 15. Bf3 {[%emt 0:01:11]} Bd6 {[%emt 0:04:46]} 16. h3 {[%emt 0:06:44]} O-O {[%emt 0:07:25]} 17. Bg5 {[%emt 0:01:31]} Bf4 {[%emt 0:01:21]} 18. Bxf6 {[%emt 0:11:57]} gxf6 {[%emt 0:00:06]} 19. g3 {[%emt 0:02:49]} Bh6 {[%emt 0:05:02]} 20. Bg2 {[%emt 0:01:50]} a5 {[%emt 0:06:17]} 21. Qh5 {[%emt 0:01:04]} Bg7 {[%emt 0:00:10]} 22. Rac1 {[%emt 0:06:00]} Qb6 {[%emt 0:02:38]} 23. d5 {[%emt 0:08:23]} f5 {[%emt 0:08:50]} 24. Rfd1 {[%emt 0:06:19]} Rd8 {[%emt 0:05:21]} 25. Nc5 {[%emt 0:07:31]} e5 $1 {[%emt 0:08:56] [#] Black is weak on the light squares} 26. d6 $1 {[%emt 0:04:37][%mdl 64] Deflection} Rxd6 {[%emt 0:00:43]} 27. Rxd6 {[%emt 0:00:26]} Qxd6 {[%emt 0:00:08]} 28. Nxb7 {[%emt 0:00:50]} Qh6 {[%emt 0:05:41]} 29. Qxh6 {[%emt 0:03:52]} Bxh6 {[%emt 0:00:04]} 30. Rc5 {[%emt 0:00:53][%csl LRa5,LRe5] aiming for Nd6.} Bxb7 {[%emt 0:03:49]} 31. Bxb7 $11 {[%emt 0:00:10][%mdl 4096] Endgame KRB-KRB} Ra7 {[%emt 0:00:38]} 32. Bc8 {[%emt 0:00:59]} f4 {[%emt 0:01:13]} 33. Rxe5 {[%emt 0:01:31] White is more active.} fxg3 {[%emt 0:00:08]} 34. fxg3 {[%emt 0:00:12]} Rc7 {[%emt 0:02:38]} 35. Bf5 {[%emt 0:00:44]} Rc5 {[%emt 0:00:51][%mdl 64] [#] Decoy} 36. Rxc5 {[%emt 0:01:44]} ({Don't go for} 36. Bxh7+ $2 Kxh7 37. Rxc5 Be3+ 38. Kh2 Bxc5 $19) 36... Be3+ {[%emt 0:00:06]} 37. Kf1 {[%emt 0:00:10]} Bxc5 $14 {[%emt 0:00:06] KB-KB} 38. Ke2 {[%emt 0:00:03]} Bd4 {[%emt 0:02:08]} 39. b3 {[%emt 0:00:09]} h5 {[%emt 0:02:05]} 40. Kd3 {[%emt 0:03:47]} Bf2 {[%emt 0:00:36]} 41. g4 {[%emt 0:40:07]} hxg4 {[%emt 0:40:05]} 42. hxg4 {[%emt 0:00:00]} Kf8 {[%emt 0:00:00]} 43. Kc4 {[%emt 0:00:00]} Ke7 {[%emt 0:00:00]} 44. Kb5 {[%emt 0:00:00]} Be1 {[%emt 0:00:00]} 45. a3 {[%emt 0:00:00][%cal Ba2a3,Ba3b4,Bb4b5][%mdl 32]} Kd6 {[%emt 0:00:00]} 46. Bc2 {[%emt 0:00:00]} f6 {[%emt 0:00:00]} 47. b4 {[%emt 0:00:00]} axb4 {[%emt 0:00:00]} 48. axb4 {[%emt 0:00:00]} Kc7 {[%emt 0:00:00]} 49. Kc5 {[%emt 0:00:00]} Bf2+ {[%emt 0:00:00]} 50. Kd5 {[%emt 0:00:00]} Be1 {[%emt 0:00:00]} 51. b5 {[%emt 0:00:00]} Kb6 {[%emt 0:00:00]} 52. Bd3 {[%emt 0:00:00]} Bh4 {[%emt 0:00:00]} 53. Ke6 {[%emt 0:00:00]} Bg5 {[%emt 0:00:00]} 54. Kf5 {[%emt 0:00:00]} Kc5 {[%emt 0:00:00]} 55. Bf1 {[%emt 0:00:00]} Kb6 {[%emt 0:00:00]} 56. Bd3 {[%emt 0:00:00]} Kc5 {[%emt 0:00:00]} 57. Bf1 {[%emt 0:00:00]} Kb6 {[%emt 0:00:00]} 58. Bd3 {[%emt 0:12:53] Weighted Error Value: White=0.07 (flawless) /Black=0.06 (flawless)} 1/2-1/2